lending/lending_fUSD_20260317
["ID","MTS","AMOUNT","RATE_DAILY","PERIOD"]
[408492269,1773749441004,-150.0,0.00013421,2]
[408492270,1773749441012,-150.0,0.00013421,2]
[408492271,1773749441021,-150.0,0.00013421,2]
[408492272,1773749441030,-250.0,0.00013421,2]
[408492273,1773749441038,-150.0,0.00013421,2]
[408492274,1773749441048,-155.47092211,0.00013421,2]
[408492275,1773749441057,-153.16199732,0.00013421,2]
[408492276,1773749441066,-500.0,0.00013421,2]
[408492277,1773749441075,-642.0,0.00013421,2]
[408492278,1773749441085,-150.0,0.00013421,2]
[408492279,1773749441094,-150.0,0.00013421,2]
[408492280,1773749441103,-254.43035368,0.00013421,2]
[408492281,1773749441113,-150.0,0.00013421,2]
[408492282,1773749441123,-154.65354927,0.00013421,2]
[408492283,1773749441132,-500.0,0.00013421,2]
[408492284,1773749441141,-509.77853922,0.00013421,2]
[408492285,1773749441150,-150.0,0.00013421,2]
[408492286,1773749441160,-150.0,0.00013421,2]
[408492287,1773749441169,-150.0,0.00013421,2]
[408492288,1773749441178,-208.87152917,0.00013421,2]
[408492289,1773749441187,-203.42478898,0.00013421,2]
[408492290,1773749441196,-150.0,0.00013421,2]
[408492291,1773749441206,-150.0,0.00013421,2]
[408492292,1773749441215,-150.0,0.00013421,2]
[408492293,1773749441224,-215.99597875,0.00013421,2]
[408492294,1773749441234,-500.0,0.00013421,2]
[408492295,1773749441243,-500.0,0.00013421,2]
[408492296,1773749441252,-427.34335344,0.00013421,2]
[408492297,1773749441261,-150.0,0.00013421,2]
[408492298,1773749441271,-293.41739625,0.00013421,2]
[408492299,1773749441280,-3240.0,0.00013425,2]
[408492300,1773749441289,-497.22925258,0.00013464,2]
[408492301,1773749441298,-1000.0,0.000135,2]
[408492302,1773749441307,-151.0,0.00013507,2]
[408492303,1773749441316,-151.0,0.00013507,2]
[408492304,1773749441326,-151.0,0.00013507,2]
[408492305,1773749441337,-151.0,0.00013507,2]
[408492306,1773749441347,-151.0,0.00013507,2]
[408492307,1773749441355,-151.0,0.00013507,2]
[408492308,1773749441364,-151.0,0.00013507,2]
[408492309,1773749441373,-10000.0,0.00013507,2]
[408492310,1773749441383,-166.66,0.00013518,2]
[408492311,1773749441392,-200.0,0.00013541,2]
[408492312,1773749441400,-14454.03335851,0.00013553,2]
[408492313,1773749441409,-155.0,0.00013555,2]
[408492314,1773749441418,-293.336,0.0001361,2]
[408492315,1773749441428,-150.0,0.0001361,2]
[408492316,1773749441438,-150.0,0.0001361,2]
[408492317,1773749441447,-150.0,0.0001361,2]
[408492318,1773749441456,-620.0,0.0001361,2]
[408492319,1773749441465,-3511.0,0.0001361,2]
[408492320,1773749441474,-1044.0,0.0001361,2]
[408492321,1773749441484,-150.0,0.0001361,2]
[408492322,1773749441493,-1260.0,0.0001361,2]
[408492323,1773749441502,-153.320739,0.0001361,2]
[408492324,1773749441511,-2052.74263902,0.00013613,2]
[408492325,1773749441520,-1546.57,0.00013637,2]
[408492327,1773749441529,-585.07,0.00013698,2]
[408492328,1773749441538,-585.07,0.00013698,2]
[408492329,1773749441547,-585.07,0.00013698,2]
[408492330,1773749441556,-585.07,0.00013698,2]
[408492331,1773749441565,-585.07,0.00013698,2]
[408492332,1773749441574,-585.07,0.00013698,2]
[408492333,1773749441582,-585.07,0.00013698,2]
[408492334,1773749441595,-585.07,0.00013698,2]
[408492335,1773749441604,-585.07,0.00013698,2]
[408492336,1773749441613,-585.07,0.00013698,2]
[408492337,1773749441622,-585.07,0.00013698,2]
[408492338,1773749441631,-212.51879098,0.00013698,2]
[408492339,1773749441640,-500.1490798,0.00013698,2]
[408492340,1773749441650,-500.0,0.00013698,2]
[408492341,1773749441659,-511.1229767,0.00013698,2]
[408492342,1773749441667,-500.0,0.00013698,2]
[408492343,1773749441676,-500.0,0.00013698,2]
[408492344,1773749441685,-500.0,0.00013698,2]
[408492345,1773749441694,-379.28357264,0.00013698,2]
[408492346,1773749441703,-288.68534246,0.00013698,2]
[408492347,1773749441715,-521.59387392,0.00013698,2]
[408492348,1773749441727,-515.29361481,0.00013698,2]
[408492349,1773749441736,-500.0,0.00013698,2]
[408492350,1773749441746,-500.0,0.00013698,2]
[408492351,1773749441755,-500.0,0.00013698,2]
[408492352,1773749441763,-624.90534166,0.00013698,2]
[408492353,1773749441772,-500.0,0.00013698,2]
[408492354,1773749441782,-500.0,0.00013698,2]
[408492355,1773749441791,-500.0,0.00013698,2]
[408492356,1773749441899,-500.0,0.00013698,2]
[408492357,1773749441909,-517.83234914,0.00013698,2]
[408492358,1773749441918,-500.0,0.00013698,2]
[408492359,1773749441927,-500.0,0.00013698,2]
[408492360,1773749441935,-500.0,0.00013698,2]
[408492361,1773749441944,-500.0,0.00013698,2]
[408492362,1773749441953,-500.0,0.00013698,2]
[408492363,1773749441962,-500.0,0.00013698,2]
[408492364,1773749441971,-500.0,0.00013698,2]
[408492365,1773749441980,-500.0,0.00013698,2]
[408492366,1773749441989,-500.0,0.00013698,2]
[408492367,1773749441998,-500.0,0.00013698,2]
[408492368,1773749442007,-500.0,0.00013698,2]
[408492369,1773749442015,-500.0,0.00013698,2]
[408492370,1773749442024,-500.0,0.00013698,2]
[408492371,1773749442032,-500.0,0.00013698,2]
[408492372,1773749442041,-516.15125572,0.00013698,2]
[408492373,1773749442050,-500.0,0.00013698,2]
[408492374,1773749442059,-500.0,0.00013698,2]
[408492375,1773749442068,-500.0,0.00013698,2]
[408492376,1773749442077,-500.0,0.00013698,2]
[408492377,1773749442085,-500.0,0.00013698,2]
[408492378,1773749442097,-200.0,0.00013699,2]
[408492379,1773749442106,-762.35,0.00013699,2]
[408492380,1773749442115,-1526.25,0.00013699,2]
[408492381,1773749442124,-567.28130547,0.00013699,2]
[408492382,1773749442145,-500.0,0.00013699,2]
[408492383,1773749442166,-500.0,0.00013699,2]
[408492384,1773749442176,-500.0,0.00013699,2]
[408492385,1773749442186,-160.10164631,0.00013699,2]
[408492386,1773749442196,-500.0,0.00013699,2]
[408492387,1773749442206,-500.0,0.00013699,2]
[408492388,1773749442216,-500.0,0.00013699,2]
[408492389,1773749442227,-154.33951012,0.00013699,2]
[408492390,1773749442237,-162.13,0.000137,2]
[408492391,1773749442246,-500.0,0.00013789,2]
[408492392,1773749442255,-500.0,0.0001379,2]
[408492393,1773749442263,-500.0,0.0001379,2]
[408492394,1773749442272,-500.0,0.0001379,2]
[408492395,1773749442280,-500.0,0.0001379,2]
[408492396,1773749442289,-521.6043228,0.0001379,2]
[408492397,1773749442298,-500.0,0.0001379,2]
[408492398,1773749442309,-500.0,0.0001379,2]
[408492399,1773749442319,-500.0,0.0001379,2]
[408492400,1773749442330,-166.66,0.00013797,2]
[408492401,1773749442341,-895.67730319,0.00013861,2]
[408492402,1773749442351,-685.06941575,0.00013865,2]
[408492403,1773749442359,-80036.6338067,0.00013866,2]
[408492404,1773749442369,-666.0,0.0001387,2]
[408492405,1773749442378,-707.39521785,0.0001387,2]
[408492406,1773749442387,-151.0,0.00013871,2]
[408492407,1773749442396,-5000.0,0.00013871,2]
[408492408,1773749442406,-5000.0,0.00013871,2]
[408492409,1773749442415,-5000.0,0.00013871,2]
[408492410,1773749442425,-5000.0,0.00013871,2]
[408492411,1773749442434,-5000.0,0.00013871,2]
[408492412,1773749442444,-5000.0,0.00013871,2]
[408492413,1773749442453,-476809.2639943,0.00013871,2]
[408492414,1773749442463,-511.07243209,0.0001389,2]
[408492415,1773749442472,-343.50730924,0.0001389,2]
[408492416,1773749442482,-500.0,0.0001389,2]
[408492417,1773749442492,-500.0,0.0001389,2]
[408492418,1773749442501,-163.51,0.00014037,2]
[408492419,1773749442512,-12632.7792805,0.00014046,2]
[408492420,1773749442521,-168.0,0.00014051,2]
[408492421,1773749442531,-168.0,0.00014063,2]
[408492422,1773749442540,-166.66,0.00014076,2]
[408492423,1773749442550,-168.0,0.00014076,2]
[408492424,1773749442559,-168.0,0.00014078,2]
[408492425,1773749442568,-200.0,0.00014089,2]
[408492426,1773749442578,-194.08,0.00014121,2]
[408492427,1773749442588,-168.0,0.00014187,2]
[408492428,1773749442598,-311.0,0.00014207,2]
[408492429,1773749442607,-2000.0,0.00014241,2]
[408492430,1773749442623,-1000.0,0.00014247,2]
[408492431,1773749442645,-1006.88410936,0.00014247,2]
[408492432,1773749442663,-1000.0,0.00014247,2]
[408492433,1773749442675,-504.87765582,0.00014247,2]
[408492434,1773749442686,-1000.0,0.00014247,2]
[408492435,1773749442697,-1000.0,0.00014247,2]
[408492436,1773749442706,-150.0,0.00014309,14]
[408492437,1773749442717,-150.0,0.00014309,14]
[408492438,1773749442730,-156.0,0.00014309,14]
[408492439,1773749442740,-256.0,0.00014309,14]
[408492440,1773749442751,-282.0,0.00014309,14]
[408492442,1773749442764,-150.0,0.00014309,14]
[408492444,1773749442774,-250.0,0.00014309,14]
[408492446,1773749442785,-172.0,0.00014309,14]
[408492448,1773749442796,-150.0,0.00014309,14]
[408492450,1773749442809,-231.0,0.00014309,14]
[408492451,1773749442820,-280.0,0.00014309,14]
[408492452,1773749442830,-14454.03335851,0.00014313,2]
[408492453,1773749442840,-1152.0,0.00014321,2]
[408492455,1773749442851,-4609.0,0.00014321,2]
[408492456,1773749442861,-1037.0,0.00014341,2]
[408492457,1773749442871,-166.66,0.00014355,2]
[408492458,1773749442885,-1252.0,0.00014355,2]
[408492459,1773749442895,-1164.0,0.00014361,5]
[408492460,1773749442905,-1223.0,0.0001437,5]
[408492461,1773749442919,-168.0,0.00014373,2]
[408492463,1773749442928,-1526.25,0.00014384,2]
[408492465,1773749442939,-2818.7540639,0.00014401,2]
[408492466,1773749442948,-3429.83568096,0.00014407,2]
[408492469,1773749442958,-311.0,0.00014466,2]
[408492472,1773749442968,-150.0,0.00014527,14]
[408492474,1773749442977,-223.0,0.00014527,14]
[408492476,1773749442987,-442.20920603,0.00014534,2]
[408492477,1773749442997,-291.40732139,0.00014537,2]
[408492478,1773749443008,-168.0,0.00014585,2]
[408492479,1773749443019,-158.95,0.00014589,2]
[408492481,1773749443030,-219.44908561,0.00014595,2]
[408492483,1773749443040,-168.0,0.00014604,2]
[408492485,1773749443048,-166.66,0.00014633,2]
[408492487,1773749443059,-204.04031347,0.00014637,2]
[408492489,1773749443069,-168.0,0.00014643,2]
[408492491,1773749443080,-168.0,0.00014657,2]
[408492492,1773749443092,-333.521445,0.00014672,7]
[408492495,1773749443103,-1234.778593,0.00014672,7]
[408492497,1773749443115,-168.0,0.00014677,2]
[408492499,1773749443126,-168.0,0.0001476,2]
[408492500,1773749443138,-168.0,0.00014761,2]
[408492502,1773749443147,-168.0,0.00014766,2]
[408492504,1773749443157,-500.0,0.00014795,2]
[408492506,1773749443166,-253.74817323,0.00014795,2]
[408492508,1773749443175,-1500.0,0.00014795,2]
[408492510,1773749443184,-168.0,0.000148,2]
[408492512,1773749443194,-168.0,0.00014851,2]
[408492514,1773749443205,-163.51,0.00014862,2]
[408492516,1773749443214,-168.0,0.00014929,2]
[408492518,1773749443225,-168.0,0.00014997,2]
[408492520,1773749443235,-250.0,0.00015,2]
[408492522,1773749443246,-1027.55232451,0.00015026,2]
[408492523,1773749443255,-1117.41928942,0.00015026,2]
[408492524,1773749443263,-1015.74918813,0.00015026,2]
[408492525,1773749443272,-1526.25,0.00015068,2]
[408492526,1773749443282,-585.07,0.0001507,2]
[408492527,1773749443292,-14454.03335851,0.00015074,2]
[408492528,1773749443300,-168.0,0.00015076,2]
[408492529,1773749443309,-1546.57,0.00015152,2]
[408492530,1773749443318,-168.0,0.0001516,2]
[408492531,1773749443327,-151.0,0.00015181,2]
[408492532,1773749443337,-151.0,0.00015181,2]
[408492533,1773749443346,-151.0,0.00015181,2]
[408492534,1773749443355,-151.0,0.00015181,2]
[408492535,1773749443364,-151.0,0.00015181,2]
[408492536,1773749443375,-68149.43754782,0.00015275,2]
[408492537,1773749443751,-644.61122412,0.00015275,2]
[408492538,1773749444026,-160.0,0.00012213,2]
[408492539,1773749444035,-629.47421459,0.00012792,2]
[408492540,1773749444046,-448.13622011,0.00012792,2]
[408492541,1773749444058,-3233.69537684,0.00012792,2]
[408492542,1773749444070,-1558.81911971,0.00012792,2]
[408492543,1773749444081,-281.649,0.00012792,2]
[408492544,1773749444094,-1851.78918685,0.00012792,2]
[408492545,1773749444136,-526.028907,0.00012213,2]
[408492546,1773749444147,-44.51899003,0.00012792,2]
[408492547,1773749444159,-5523.86793438,0.00012792,2]
[408492548,1773749444171,-2646.17377388,0.00012792,2]
[408492549,1773749444180,-339.442,0.00013178,2]
[408492550,1773749444190,-2468.74,0.00013178,2]
[408492551,1773749444200,-11242.58503476,0.00015275,2]
[408492552,1773749444210,-666.0,0.0001528,2]
[408492553,1773749444219,-194.08,0.0001528,2]
[408492554,1773749444228,-75819.24072102,0.00015281,2]
[408492555,1773749444242,-10011.22949497,0.00015281,2]
[408492556,1773749444586,-892.057815,0.00012213,2]
[408492557,1773749444596,-151.79240683,0.00013178,2]
[408492558,1773749444606,-151.0,0.00013421,2]
[408492559,1773749444615,-172.0,0.00013699,2]
[408492560,1773749444623,-2958.912606,0.00014655,7]
[408492561,1773749444633,-24215.73701849,0.00015281,2]
[408492569,1773749445784,-386.62084125,0.00012688,2]
[408492571,1773749445838,-113.37915875,0.00012688,2]
[408492572,1773749445848,-16218.12381639,0.00013553,2]
[408492573,1773749445857,-205813.63132494,0.00015281,2]
[408492574,1773749445868,-116365.000001,0.00015281,2]
[408492575,1773749446049,-327.9912739,0.00015281,2]
[408492578,1773749477873,10000.0,0.00032877,120]
[408492579,1773749479106,10000.0,0.00032877,120]
[408492580,1773749480138,10000.0,0.00032877,120]
[408492581,1773749481152,10000.0,0.00032877,120]
[408492582,1773749482183,10000.0,0.00032877,120]
[408492583,1773749483324,10000.0,0.00032877,120]
[408492584,1773749484635,10000.0,0.00032877,120]
[408492585,1773749485816,10000.0,0.00032877,120]
[408492586,1773749487057,10000.0,0.00032877,120]
[408492587,1773749488564,519.0,0.0003287,120]
[408492588,1773749489355,701.0,0.0003287,120]
[408492589,1773749540132,155.1,0.00032877,120]
[408492590,1773749546320,1039.0,0.0003287,120]
[408492591,1773749608282,571.75189755,0.0003287,120]
[408492592,1773749624740,10000.0,0.00032877,120]
[408492594,1773749662808,500.0,0.0003287,120]
[408492595,1773749822044,980000.0,0.0003287,120]
[408492596,1773749877371,2915.39,0.00032877,120]
[408492597,1773749927906,1887.35,0.00032877,120]
[408492598,1773749939894,943.67,0.00032877,120]
[408492599,1773749963288,943.67,0.00032877,120]
[408492601,1773750008132,1000.0,0.0003287,120]
[408492604,1773750112002,6954.18,0.00032877,120]
[408492611,1773750278582,1065.74199681,0.000328,120]
[408492612,1773750328130,1344.0,0.0003287,120]
[408492613,1773750415293,1000.0,0.00032877,120]
[408492614,1773750416623,273.22484241,0.0003287,120]
[408492615,1773750458754,9999.74,0.00032877,120]
[408492616,1773750460329,1000.0,0.00032877,120]
[408492617,1773750504156,1000.0,0.00032877,120]
[408492618,1773750510243,999.82,0.0003287,120]
[408492619,1773750544816,900.15904802,0.00032877,120]
[408492631,1773750632118,-279.79428379,0.00011507,2]
[408492632,1773750632130,-657.27571621,0.00011507,2]
[408492633,1773750632139,-244.0,0.00011507,2]
[408492634,1773750632149,-250.0,0.00011788,2]
[408492635,1773750632159,-250.0,0.00012149,2]
[408492636,1773750632171,-150.0,0.00012407,2]
[408492637,1773750632181,-1852.42,0.00012416,2]
[408492638,1773750632321,-1200.0,0.00012422,2]
[408492639,1773750632331,-952.85,0.00012427,2]
[408492640,1773750632340,-300.0,0.00012431,2]
[408492641,1773750632350,-300.0,0.00012431,2]
[408492642,1773750632360,-6626.62,0.00012432,2]
[408492643,1773750632370,-2000.0,0.0001263,2]
[408492644,1773750632380,-250.0,0.00012658,2]
[408492645,1773750632389,-166.66,0.00012731,2]
[408492646,1773750632399,-164.28,0.00012818,2]
[408492647,1773750632409,-774.56,0.00012828,2]
[408492648,1773750632418,-164.77,0.00012946,2]
[408492649,1773750632427,-166.66,0.00012999,2]
[408492650,1773750632437,-500.0,0.00013033,2]
[408492651,1773750632446,-500.0,0.00013033,2]
[408492652,1773750632457,-500.0,0.00013033,2]
[408492653,1773750632467,-500.0,0.00013033,2]
[408492654,1773750632476,-500.0,0.00013033,2]
[408492655,1773750632485,-500.0,0.00013033,2]
[408492656,1773750632494,-500.0,0.00013033,2]
[408492657,1773750632503,-929.37600956,0.00013091,2]
[408492658,1773750632513,-160.0,0.00013091,2]
[408492659,1773750632522,-1600.0,0.00013135,2]
[408492660,1773750632532,-166.66,0.00013267,2]
[408492661,1773750632541,-150.0,0.00013292,2]
[408492662,1773750632551,-286.4445051,0.00013293,2]
[408492663,1773750632561,-151.0,0.00013293,2]
[408492664,1773750632571,-151.0,0.00013293,2]
[408492665,1773750632581,-151.0,0.00013293,2]
[408492666,1773750632591,-200.0,0.00013293,2]
[408492667,1773750632601,-151.0,0.00013293,2]
[408492668,1773750632611,-151.0,0.00013293,2]
[408492669,1773750632622,-151.0,0.00013293,2]
[408492670,1773750632632,-151.0,0.00013293,2]
[408492671,1773750632641,-151.0,0.00013293,2]
[408492672,1773750632651,-151.0,0.00013293,2]
[408492673,1773750632660,-151.0,0.00013293,2]
[408492674,1773750632670,-151.0,0.00013293,2]
[408492675,1773750632680,-151.0,0.00013293,2]
[408492676,1773750632689,-151.0,0.00013293,2]
[408492677,1773750632700,-151.0,0.00013293,2]
[408492678,1773750632710,-151.0,0.00013293,2]
[408492679,1773750632719,-151.0,0.00013293,2]
[408492680,1773750632729,-151.0,0.00013293,2]
[408492681,1773750632739,-151.0,0.00013293,2]
[408492682,1773750632749,-292.38577849,0.00013293,2]
[408492683,1773750632760,-151.0,0.00013293,2]
[408492684,1773750632769,-151.0,0.00013293,2]
[408492685,1773750632778,-469.6169276,0.00013293,2]
[408492686,1773750632788,-5038.37,0.00013301,2]
[408492687,1773750632797,-1500.0,0.00013301,2]
[408492688,1773750632807,-150.0,0.00013349,2]
[408492689,1773750632817,-150.0,0.00013425,2]
[408492690,1773750632827,-168.0,0.00013451,2]
[408492691,1773750632838,-200.0,0.000135,4]
[408492692,1773750632848,-150.0,0.00013535,2]
[408492693,1773750632857,-150.0,0.00013535,2]
[408492694,1773750632869,-150.0,0.00013535,2]
[408492695,1773750632878,-155.82159694,0.00013535,2]
[408492696,1773750632888,-151.46727953,0.00013535,2]
[408492697,1773750632897,-166.66,0.00013535,2]
[408492698,1773750632909,-1000.0,0.00013581,2]
[408492699,1773750632918,-505.34039603,0.00013581,2]
[408492700,1773750632929,-1000.0,0.00013581,2]
[408492701,1773750632939,-500.0,0.00013581,2]
[408492702,1773750632948,-500.0,0.00013581,2]
[408492703,1773750632958,-1000.0,0.00013598,2]
[408492704,1773750632968,-400.0,0.000136,4]
[408492705,1773750632978,-168.0,0.00013627,2]
[408492706,1773750632988,-420.0,0.00013641,2]
[408492707,1773750632998,-1680.0,0.00013664,2]
[408492708,1773750633009,-500.0,0.00013698,2]
[408492709,1773750633019,-500.0,0.00013698,2]
[408492710,1773750633028,-9999.99,0.00013699,2]
[408492711,1773750633038,-4999.99,0.00013699,2]
[408492712,1773750633050,-9999.99,0.00013699,2]
[408492713,1773750633060,-9999.99,0.00013699,2]
[408492714,1773750633069,-999.99,0.00013699,2]
[408492715,1773750633079,-8446.77,0.00013699,2]
[408492716,1773750633089,-15501.72,0.00013699,2]
[408492717,1773750633099,-150.99,0.00013699,2]
[408492718,1773750633112,-1617.65,0.00013699,2]
[408492719,1773750633124,-9999.99,0.00013699,2]
[408492720,1773750633133,-3201.68,0.00013699,2]
[408492721,1773750633142,-499.99,0.00013699,2]
[408492722,1773750633151,-9999.99,0.00013699,2]
[408492723,1773750633161,-299.99,0.00013699,2]
[408492724,1773750633170,-517.16,0.00013699,2]
[408492725,1773750633180,-150.99,0.00013699,2]
[408492726,1773750633191,-7806.58,0.00013699,2]
[408492727,1773750633203,-679.23,0.00013699,2]
[408492728,1773750633213,-366.38,0.00013699,2]
[408492729,1773750633223,-188.13,0.00013699,2]
[408492730,1773750633233,-600.0,0.000137,5]
[408492731,1773750633242,-2488.99140196,0.00013741,2]
[408492732,1773750633252,-1000.0,0.00013752,2]
[408492733,1773750633261,-1000.0,0.00013752,2]
[408492734,1773750633270,-1260.0,0.00013753,2]
[408492735,1773750633279,-923.0,0.00013753,2]
[408492736,1773750633289,-1214.0,0.00013753,2]
[408492737,1773750633300,-1344.0,0.00013753,2]
[408492738,1773750633310,-1044.0,0.00013753,2]
[408492739,1773750633319,-800.0,0.000138,5]
[408492740,1773750633328,-166.66,0.00013803,2]
[408492741,1773750633338,-3531.4916,0.00013808,2]
[408492742,1773750633349,-97357.836,0.00013808,2]
[408492743,1773750633359,-2500.0,0.00013809,2]
[408492744,1773750633368,-257.99038287,0.00013809,2]
[408492745,1773750633378,-9141.43424178,0.00013824,2]
[408492746,1773750633387,-2276.87937694,0.00013824,2]
[408492747,1773750633396,-200.0,0.00013841,2]
[408492748,1773750633406,-500.0,0.00013872,2]
[408492749,1773750633415,-560.33239188,0.00013872,2]
[408492750,1773750633424,-184.75114855,0.00013872,2]
[408492751,1773750633434,-1637.58682072,0.00013872,2]
[408492752,1773750633444,-500.0,0.00013872,2]
[408492753,1773750633454,-1637.58682072,0.00013872,2]
[408492754,1773750633463,-500.0,0.00013872,2]
[408492755,1773750633473,-1637.58682072,0.00013872,2]
[408492756,1773750633484,-500.0,0.00013872,2]
[408492757,1773750633494,-500.0,0.00013872,2]
[408492758,1773750633504,-500.0,0.00013872,2]
[408492759,1773750633514,-1637.58682072,0.00013872,2]
[408492760,1773750633524,-500.0,0.00013872,2]
[408492761,1773750633533,-161.62521162,0.00013872,2]
[408492762,1773750633542,-1637.58682072,0.00013872,2]
[408492763,1773750633552,-500.0,0.00013872,2]
[408492764,1773750633563,-1637.58682072,0.00013872,2]
[408492765,1773750633572,-1637.58682072,0.00013872,2]
[408492766,1773750633581,-1637.58682072,0.00013872,2]
[408492767,1773750633590,-500.0,0.00013873,2]
[408492768,1773750633599,-500.0,0.00013873,2]
[408492769,1773750633608,-196.25165977,0.00013873,2]
[408492770,1773750633619,-237.17420246,0.00013873,2]
[408492771,1773750633629,-500.0,0.00013873,2]
[408492772,1773750633639,-500.0,0.00013873,2]
[408492773,1773750633648,-24861.07098476,0.00013874,2]
[408492774,1773750633657,-164.28,0.00013886,2]
[408492775,1773750633666,-349.31660354,0.00013899,2]
[408492776,1773750633676,-1000.0,0.000139,5]
[408492777,1773750633687,-500.0,0.00013908,2]
[408492778,1773750633698,-552.02617946,0.00013908,2]
[408492779,1773750633707,-500.0,0.00013908,2]
[408492780,1773750633717,-500.0,0.00013908,2]
[408492781,1773750633726,-386.41832563,0.00013908,2]
[408492782,1773750633737,-188.0458545,0.00013908,2]
[408492783,1773750633746,-500.0,0.00013908,2]
[408492784,1773750633755,-500.0,0.00013908,2]
[408492785,1773750633765,-210.39968167,0.00013908,2]
[408492786,1773750633774,-150.0,0.00013908,2]
[408492787,1773750633784,-150.0,0.00013908,2]
[408492788,1773750633793,-181.57906523,0.00013908,2]
[408492789,1773750633803,-1318.0,0.00013908,5]
[408492790,1773750633812,-92111.45505587,0.00013909,2]
[408492791,1773750633824,-19735.00756542,0.00013909,2]
[408492792,1773750633836,-559.20306,0.00013909,2]
[408492794,1773750638054,-399.29528248,0.00012307,2]
[408492795,1773750638065,-1637.58682072,0.00013872,2]
[408492796,1773750638075,-1637.58682072,0.00013872,2]
[408492797,1773750638086,-1637.58682072,0.00013872,2]
[408492798,1773750638095,-1637.58682072,0.00013872,2]
[408492799,1773750638105,-1637.58682072,0.00013872,2]
[408492800,1773750638115,-1637.58682072,0.00013872,2]
[408492801,1773750638124,-1637.58682072,0.00013872,2]
[408492802,1773750638133,-1637.58682072,0.00013872,2]
[408492803,1773750638143,-1637.58682072,0.00013872,2]
[408492804,1773750638152,-1637.58682072,0.00013872,2]
[408492805,1773750638162,-1637.58682072,0.00013872,2]
[408492806,1773750638171,-1637.58682072,0.00013872,2]
[408492807,1773750638180,-1637.58682072,0.00013872,2]
[408492808,1773750638190,-1637.58682072,0.00013872,2]
[408492809,1773750638199,-1637.58682072,0.00013872,2]
[408492810,1773750638209,-1637.58682072,0.00013872,2]
[408492811,1773750638218,-1637.58682072,0.00013872,2]
[408492812,1773750638227,-1637.58682072,0.00013872,2]
[408492813,1773750638236,-1637.58682072,0.00013872,2]
[408492814,1773750638246,-1637.58682072,0.00013872,2]
[408492815,1773750638255,-1637.58682072,0.00013872,2]
[408492816,1773750638265,-1637.58682072,0.00013872,2]
[408492817,1773750638274,-1637.58682072,0.00013872,2]
[408492818,1773750638283,-1637.58682072,0.00013872,2]
[408492819,1773750638292,-1637.58682072,0.00013872,2]
[408492820,1773750638302,-1637.58682072,0.00013872,2]
[408492821,1773750638311,-1637.58682072,0.00013872,2]
[408492822,1773750638320,-1637.58682072,0.00013872,2]
[408492823,1773750638329,-1637.58682072,0.00013872,2]
[408492824,1773750638338,-1637.58682072,0.00013872,2]
[408492825,1773750638348,-1637.58682072,0.00013872,2]
[408492826,1773750638357,-1637.58682072,0.00013872,2]
[408492827,1773750638367,-1637.58682072,0.00013872,2]
[408492828,1773750638376,-1637.58682072,0.00013872,2]
[408492829,1773750638387,-1637.58682072,0.00013872,2]
[408492830,1773750638396,-1637.58682072,0.00013872,2]
[408492832,1773750638405,-34591.71665885,0.00013909,2]
[408492834,1773750638417,-1064.40417485,0.00013909,2]
[408492835,1773750638428,-1154.38291172,0.00013909,2]
[408492836,1773750638448,-78967.4326844,0.00013909,2]
[408492837,1773750638470,-2402.21967104,0.00013909,2]
[408492838,1773750638481,-349930.43021304,0.00013909,2]